[Event "*** Titled Tuesday Blitz"]
[Site "Chess.com"]
[Date "2020.05.05"]
[Round "4"]
[White "vovachesss"]
[Black "Richarzard69"]
[Result "0-1"]
[WhiteElo "2571"]
[BlackElo "2328"]
[TimeControl "180+1"]
[EndTime "10:42:21 PDT"]
[Termination "Richarzard69 won by resignation"]

1. Nf3 {[%clk 0:03:00.9]} 1... d5 {[%clk 0:02:59.6]} 2. b3 {[%clk 0:03:00.7]}
2... Nf6 {[%clk 0:02:57.3]} 3. Bb2 {[%clk 0:03:01.2]} 3... e6 {[%clk 0:02:56.1]}
4. e3 {[%clk 0:03:00.8]} 4... Be7 {[%clk 0:02:56.4]} 5. d4 {[%clk 0:03:00.9]}
5... O-O {[%clk 0:02:55.7]} 6. Nbd2 {[%clk 0:03:01.5]} 6... b6 {[%clk
0:02:54.6]} 7. Bd3 {[%clk 0:03:01.9]} 7... Bb7 {[%clk 0:02:54]} 8. O-O {[%clk
0:03:02.5]} 8... c5 {[%clk 0:02:51.8]} 9. Qe2 {[%clk 0:03:02.8]} 9... Nbd7
{[%clk 0:02:45.5]} 10. c4 {[%clk 0:03:00.7]} 10... cxd4 {[%clk 0:02:37.5]} 11.
exd4 {[%clk 0:02:53.9]} 11... Rc8 {[%clk 0:02:28.8]} 12. Rac1 {[%clk 0:02:53.2]}
12... Rc7 {[%clk 0:02:24]} 13. Ne5 {[%clk 0:02:36.9]} 13... Qa8 {[%clk
0:02:10.3]} 14. Ndf3 {[%clk 0:02:35.7]} 14... Rd8 {[%clk 0:02:03.5]} 15. Nxd7
{[%clk 0:02:32.2]} 15... Rdxd7 {[%clk 0:01:54.3]} 16. Ne5 {[%clk 0:01:50.9]}
16... Rd8 {[%clk 0:01:53.9]} 17. f3 {[%clk 0:01:13.9]} 17... dxc4 {[%clk
0:01:37.4]} 18. bxc4 {[%clk 0:01:14.1]} 18... Nd7 {[%clk 0:01:31.7]} 19. Ng4
{[%clk 0:00:56.3]} 19... Nf6 {[%clk 0:01:27.2]} 20. Ne5 {[%clk 0:00:51.6]} 20...
Rcc8 {[%clk 0:01:22]} 21. Rfe1 {[%clk 0:00:50.8]} 21... Bb4 {[%clk 0:01:11.2]}
22. Nxf7 {[%clk 0:00:40.5]} 22... Kxf7 {[%clk 0:01:06.3]} 23. Qxe6+ {[%clk
0:00:40.6]} 23... Kf8 {[%clk 0:01:05.2]} 24. d5 {[%clk 0:00:27.4]} 24... Re8
{[%clk 0:01:01.9]} 25. Qf5 {[%clk 0:00:19.8]} 25... Rxe1+ {[%clk 0:00:29.6]} 26.
Rxe1 {[%clk 0:00:19.8]} 26... Bxe1 {[%clk 0:00:30]} 27. Bxf6 {[%clk 0:00:20.4]}
27... gxf6 {[%clk 0:00:28.6]} 28. Qxf6+ {[%clk 0:00:20.7]} 28... Kg8 {[%clk
0:00:20.5]} 29. Qe6+ {[%clk 0:00:20.6]} 29... Kf8 {[%clk 0:00:20]} 30. Qd6+
{[%clk 0:00:18.2]} 30... Kg8 {[%clk 0:00:19.7]} 31. Qe6+ {[%clk 0:00:14.4]}
31... Kf8 {[%clk 0:00:19.5]} 32. Bxh7 {[%clk 0:00:11.1]} 32... Rc7 {[%clk
0:00:17.4]} 33. Qg8+ {[%clk 0:00:06.4]} 33... Ke7 {[%clk 0:00:16.2]} 34. Qe6+
{[%clk 0:00:05.6]} 34... Kf8 {[%clk 0:00:15.8]} 35. Qg8+ {[%clk 0:00:05.2]}
35... Ke7 {[%clk 0:00:15.5]} 36. Qg7+ {[%clk 0:00:06.1]} 36... Kd6 {[%clk
0:00:15.1]} 37. Qf6+ {[%clk 0:00:04.3]} 37... Kc5 {[%clk 0:00:14.1]} 38. Be4
{[%clk 0:00:03.8]} 38... Qe8 {[%clk 0:00:10.6]} 39. d6 {[%clk 0:00:03.2]} 39...
Rd7 {[%clk 0:00:07.6]} 40. Qf5+ {[%clk 0:00:02.9]} 40... Kxd6 {[%clk 0:00:06.9]}
41. Qf4+ {[%clk 0:00:03.1]} 41... Ke7 {[%clk 0:00:06.8]} 42. Qg5+ {[%clk
0:00:02.8]} 42... Kd6 {[%clk 0:00:06.7]} 43. Qf6+ {[%clk 0:00:02.9]} 43... Qe6
{[%clk 0:00:06.5]} 44. Qf4+ {[%clk 0:00:03]} 44... Ke7 {[%clk 0:00:06.6]} 45.
Qg5+ {[%clk 0:00:03.2]} 45... Kd6 {[%clk 0:00:06.8]} 46. Qf4+ {[%clk 0:00:03.5]}
46... Qe5 {[%clk 0:00:07.2]} 47. Qh6+ {[%clk 0:00:03.9]} 47... Kc5 {[%clk
0:00:07.3]} 48. Qe3+ {[%clk 0:00:03.6]} 48... Qd4 {[%clk 0:00:06.2]} 49. Qxd4+
{[%clk 0:00:02.9]} 49... Kxd4 {[%clk 0:00:07.1]} 50. Bf5 {[%clk 0:00:02.4]}
50... Re7 {[%clk 0:00:06.5]} 51. g4 {[%clk 0:00:02.7]} 51... Bd2 {[%clk
0:00:07]} 52. h4 {[%clk 0:00:02.8]} 52... Be3+ {[%clk 0:00:07.9]} 53. Kg2 {[%clk
0:00:03.2]} 53... Bc6 {[%clk 0:00:08.5]} 54. g5 {[%clk 0:00:03.7]} 54... Bd7
{[%clk 0:00:09.4]} 55. Bc2 {[%clk 0:00:03.3]} 55... Be6 {[%clk 0:00:09.4]} 56.
g6 {[%clk 0:00:03.7]} 56... Bh6 {[%clk 0:00:08.6]} 57. Kg3 {[%clk 0:00:03.5]}
57... Bxc4 {[%clk 0:00:09.5]} 58. Kg4 {[%clk 0:00:03.9]} 58... Bg7 {[%clk
0:00:10]} 59. Kg5 {[%clk 0:00:03.8]} 59... Re1 {[%clk 0:00:10.9]} 60. h5 {[%clk
0:00:04.3]} 60... Rg1+ {[%clk 0:00:11.2]} 61. Kf5 {[%clk 0:00:05]} 61... Bh6
{[%clk 0:00:10.7]} 62. Kf6 {[%clk 0:00:05]} 62... Bd3 {[%clk 0:00:10.9]} 63. Bb3
{[%clk 0:00:04.5]} 63... Bc4 {[%clk 0:00:11.2]} 64. Bc2 {[%clk 0:00:04.6]} 64...
Bd5 {[%clk 0:00:11.6]} 65. f4 {[%clk 0:00:04.5]} 65... Bxf4 {[%clk 0:00:11.2]}
66. g7 {[%clk 0:00:04.9]} 66... Be5+ {[%clk 0:00:12.1]} 67. Ke7 {[%clk
0:00:05.4]} 67... Rxg7+ {[%clk 0:00:12.4]} 68. Kd8 {[%clk 0:00:06.1]} 68... Rg5
{[%clk 0:00:12.7]} 69. Kc8 {[%clk 0:00:06.2]} 69... Rxh5 {[%clk 0:00:12.7]} 70.
Kd7 {[%clk 0:00:06.8]} 70... Rh6 {[%clk 0:00:13.6]} 71. Kc8 {[%clk 0:00:06.9]}
71... Rd6 {[%clk 0:00:14.5]} 72. a4 {[%clk 0:00:07.2]} 72... a5 {[%clk
0:00:15.4]} 73. Bd1 {[%clk 0:00:06.9]} 73... Kc5 {[%clk 0:00:15.8]} 74. Be2
{[%clk 0:00:07.1]} 74... Bc3 {[%clk 0:00:16.7]} 75. Bb5 {[%clk 0:00:07.6]} 75...
Bb4 {[%clk 0:00:17.6]} 76. Be8 {[%clk 0:00:07.5]} 76... Bb3 {[%clk 0:00:17.7]}
77. Bb5 {[%clk 0:00:07.7]} 77... Rd2 {[%clk 0:00:18.4]} 78. Kb7 {[%clk
0:00:07.7]} 78... Ra2 {[%clk 0:00:18.8]} 79. Ka6 {[%clk 0:00:08.1]} 79... Bxa4
{[%clk 0:00:19.2]} 80. Bd3 {[%clk 0:00:07.9]} 80... Bb3 {[%clk 0:00:19]} 81. Bf1
{[%clk 0:00:07.2]} 81... Bc4+ {[%clk 0:00:18.9]} 82. Ka7 {[%clk 0:00:05.3]}
82... Bxf1 {[%clk 0:00:18.5]} 83. Kb7 {[%clk 0:00:05.7]} 83... a4 {[%clk
0:00:19.4]} 84. Ka7 {[%clk 0:00:06.4]} 84... a3 {[%clk 0:00:20.3]} 85. Kb7
{[%clk 0:00:07.3]} 85... Rb2 {[%clk 0:00:21.2]} 86. Ka7 {[%clk 0:00:08.1]} 86...
a2 {[%clk 0:00:21.7]} 0-1

[Event "*** Titled Tuesday Blitz"]
[Site "Chess.com"]
[Date "2020.05.05"]
[Round "4"]
[White "crywolf1986"]
[Black "Turquoise_2701"]
[Result "1-0"]
[WhiteElo "2493"]
[BlackElo "2155"]
[TimeControl "180+1"]
[EndTime "10:42:23 PDT"]
[Termination "crywolf1986 won by resignation"]

1. d4 {[%clk 0:03:00.8]} 1... Nf6 {[%clk 0:02:56.5]} 2. Nf3 {[%clk 0:03:01.7]}
2... e6 {[%clk 0:02:55.4]} 3. c4 {[%clk 0:03:01.5]} 3... c5 {[%clk 0:02:53.9]}
4. e3 {[%clk 0:03:00.7]} 4... cxd4 {[%clk 0:02:51.1]} 5. exd4 {[%clk 0:03:01.6]}
5... d5 {[%clk 0:02:51.7]} 6. Nc3 {[%clk 0:03:01.4]} 6... Nc6 {[%clk 0:02:52.2]}
7. Be2 {[%clk 0:03:00.5]} 7... dxc4 {[%clk 0:02:52.5]} 8. Bxc4 {[%clk
0:03:00.2]} 8... Be7 {[%clk 0:02:52.5]} 9. O-O {[%clk 0:03:00.1]} 9... O-O
{[%clk 0:02:53]} 10. Bg5 {[%clk 0:02:59.8]} 10... a6 {[%clk 0:02:47.7]} 11. Qd2
{[%clk 0:02:47.5]} 11... b5 {[%clk 0:02:46.2]} 12. Bb3 {[%clk 0:02:44.9]} 12...
Bb7 {[%clk 0:02:40.4]} 13. Rfe1 {[%clk 0:02:44.6]} 13... b4 {[%clk 0:02:15.9]}
14. Na4 {[%clk 0:02:41.9]} 14... Na5 {[%clk 0:02:15.4]} 15. Bc2 {[%clk
0:02:31.1]} 15... Bxf3 {[%clk 0:02:08.9]} 16. gxf3 {[%clk 0:02:32]} 16... Nd5
{[%clk 0:02:08.1]} 17. Qd3 {[%clk 0:02:20.8]} 17... g6 {[%clk 0:02:02.6]} 18.
Bh6 {[%clk 0:02:14.2]} 18... Re8 {[%clk 0:01:59.9]} 19. Re4 {[%clk 0:02:14.2]}
19... Nb7 {[%clk 0:01:37]} 20. Rg4 {[%clk 0:01:53.5]} 20... Nd6 {[%clk
0:01:30.8]} 21. Nc5 {[%clk 0:01:52.9]} 21... Nf5 {[%clk 0:01:29.5]} 22. Bd2
{[%clk 0:01:49.8]} 22... Nf6 {[%clk 0:01:21.6]} 23. Rf4 {[%clk 0:01:36.4]} 23...
Qc7 {[%clk 0:00:42.5]} 24. Ne4 {[%clk 0:01:27.2]} 24... Nd5 {[%clk 0:00:29.9]}
25. Rg4 {[%clk 0:01:27.4]} 25... Rac8 {[%clk 0:00:28.9]} 26. Bb3 {[%clk
0:01:24.2]} 26... Red8 {[%clk 0:00:23.2]} 27. Re1 {[%clk 0:01:22.1]} 27... a5
{[%clk 0:00:22.3]} 28. Ng5 {[%clk 0:01:16.1]} 28... Bxg5 {[%clk 0:00:21]} 29.
Bxg5 {[%clk 0:01:15.4]} 29... Nde7 {[%clk 0:00:20.6]} 30. d5 {[%clk 0:01:10.6]}
30... exd5 {[%clk 0:00:16.7]} 31. Bf6 {[%clk 0:01:09.6]} 31... Rd7 {[%clk
0:00:09.5]} 32. Be5 {[%clk 0:01:08.8]} 32... Qc6 {[%clk 0:00:07.1]} 33. Bf4
{[%clk 0:01:00.7]} 33... a4 {[%clk 0:00:07.1]} 34. Rc1 {[%clk 0:01:00.5]} 34...
Qxc1+ {[%clk 0:00:06.2]} 35. Bxc1 {[%clk 0:01:01.4]} 35... Rxc1+ {[%clk
0:00:07.1]} 36. Kg2 {[%clk 0:01:00.9]} 36... axb3 {[%clk 0:00:07.1]} 37. axb3
{[%clk 0:01:01.8]} 37... Rcc7 {[%clk 0:00:06.8]} 38. Rxb4 {[%clk 0:01:01.6]}
38... d4 {[%clk 0:00:06.9]} 39. Rb8+ {[%clk 0:01:00.9]} 39... Kg7 {[%clk
0:00:07]} 40. b4 {[%clk 0:01:00.4]} 40... Rb7 {[%clk 0:00:07.4]} 41. Rxb7 {[%clk
0:00:59]} 41... Rxb7 {[%clk 0:00:08.3]} 42. b5 {[%clk 0:00:59.3]} 42... Nd5
{[%clk 0:00:07.6]} 43. Qb3 {[%clk 0:00:57.6]} 43... Nf4+ {[%clk 0:00:07.2]} 44.
Kf1 {[%clk 0:00:57.3]} 44... d3 {[%clk 0:00:03.9]} 45. Qc3+ {[%clk 0:00:56.2]}
45... f6 {[%clk 0:00:03.9]} 46. b6 {[%clk 0:00:53.5]} 46... Nd5 {[%clk
0:00:02.2]} 47. Qc6 {[%clk 0:00:52.8]} 47... Rxb6 {[%clk 0:00:02.4]} 48. Qxd5
{[%clk 0:00:52.9]} 48... Rxb2 {[%clk 0:00:02.9]} 49. Qxd3 {[%clk 0:00:53]} 49...
Rb7 {[%clk 0:00:02.5]} 50. Qd5 {[%clk 0:00:52.5]} 50... Re7 {[%clk 0:00:02.4]}
51. Qc5 {[%clk 0:00:52.4]} 51... h5 {[%clk 0:00:02.7]} 52. Kg2 {[%clk
0:00:52.1]} 52... Rf7 {[%clk 0:00:03.2]} 53. f4 {[%clk 0:00:52.4]} 53... Re7
{[%clk 0:00:03.7]} 54. Kf3 {[%clk 0:00:52.2]} 54... Rf7 {[%clk 0:00:04.3]} 55.
Ke4 {[%clk 0:00:52.4]} 55... Re7+ {[%clk 0:00:04.9]} 56. Kd5 {[%clk 0:00:52.7]}
56... Rf7 {[%clk 0:00:05.4]} 57. Kc6 {[%clk 0:00:51.9]} 57... Re7 {[%clk
0:00:05.6]} 58. Qc3 {[%clk 0:00:49.6]} 58... Rf7 {[%clk 0:00:05.8]} 59. Qb3
{[%clk 0:00:49.3]} 59... Re7 {[%clk 0:00:06]} 60. Qb8 {[%clk 0:00:47.6]} 60...
Rf7 {[%clk 0:00:06.2]} 61. Qd8 {[%clk 0:00:33.2]} 61... Re7 {[%clk 0:00:04.1]}
62. Kd5 {[%clk 0:00:31.8]} 62... Rf7 {[%clk 0:00:03]} 63. Ke6 {[%clk 0:00:32.1]}
63... Re7+ {[%clk 0:00:01.9]} 64. Qxe7+ {[%clk 0:00:31.8]} 64... Nxe7 {[%clk
0:00:02.8]} 65. Kxe7 {[%clk 0:00:32.5]} 65... g5 {[%clk 0:00:03.5]} 66. f5
{[%clk 0:00:31.9]} 66... g4 {[%clk 0:00:02.9]} 67. Ke6 {[%clk 0:00:31.7]} 67...
h4 {[%clk 0:00:03.3]} 68. Ke7 {[%clk 0:00:31.6]} 68... h3 {[%clk 0:00:02.8]} 69.
Ke6 {[%clk 0:00:31.3]} 69... Kh6 {[%clk 0:00:01.8]} 70. Kxf6 {[%clk 0:00:31.3]}
70... Kh5 {[%clk 0:00:02.5]} 71. Ke5 {[%clk 0:00:29.6]} 71... g3 {[%clk
0:00:03.1]} 72. fxg3 {[%clk 0:00:29.3]} 72... Kg4 {[%clk 0:00:03.9]} 73. f6
{[%clk 0:00:29.9]} 73... Kf3 {[%clk 0:00:04.6]} 74. f7 {[%clk 0:00:30.8]} 74...
Kg2 {[%clk 0:00:05.5]} 75. f8=Q {[%clk 0:00:31.6]} 75... Kxh2 {[%clk 0:00:06.4]}
76. Qf3 {[%clk 0:00:30.2]} 76... Kg1 {[%clk 0:00:06.6]} 77. g4 {[%clk
0:00:30.7]} 77... h2 {[%clk 0:00:06.4]} 78. g5 {[%clk 0:00:30.3]} 78... h1=Q
{[%clk 0:00:06.8]} 79. Qxh1+ {[%clk 0:00:30.7]} 79... Kxh1 {[%clk 0:00:07.7]}
1-0

[Event "*** Titled Tuesday Blitz"]
[Site "Chess.com"]
[Date "2020.05.05"]
[Round "4"]
[White "karinachess1"]
[Black "lamomiablanca"]
[Result "1/2-1/2"]
[WhiteElo "2480"]
[BlackElo "2139"]
[TimeControl "180+1"]
[EndTime "10:42:24 PDT"]
[Termination "Game drawn by stalemate"]

1. Nf3 {[%clk 0:03:00.9]} 1... Nf6 {[%clk 0:02:59.1]} 2. c4 {[%clk 0:03:00.6]}
2... g6 {[%clk 0:02:51.6]} 3. g3 {[%clk 0:03:00.1]} 3... Bg7 {[%clk 0:02:51.1]}
4. Bg2 {[%clk 0:03:00.6]} 4... O-O {[%clk 0:02:51]} 5. O-O {[%clk 0:03:00.8]}
5... d6 {[%clk 0:02:51.2]} 6. d4 {[%clk 0:03:00.8]} 6... Nc6 {[%clk 0:02:51.1]}
7. Nc3 {[%clk 0:03:00.5]} 7... e5 {[%clk 0:02:51.4]} 8. d5 {[%clk 0:02:53.3]}
8... Nb8 {[%clk 0:02:51.4]} 9. e4 {[%clk 0:02:53.6]} 9... a5 {[%clk 0:02:51.4]}
10. Ne1 {[%clk 0:02:53.4]} 10... Na6 {[%clk 0:02:51.1]} 11. Nd3 {[%clk
0:02:53.5]} 11... Nd7 {[%clk 0:02:50.8]} 12. Be3 {[%clk 0:02:49.7]} 12... Ndc5
{[%clk 0:02:49.9]} 13. a3 {[%clk 0:02:43.5]} 13... Nxd3 {[%clk 0:02:47.9]} 14.
Qxd3 {[%clk 0:02:43.2]} 14... Bd7 {[%clk 0:02:46.9]} 15. Qc2 {[%clk 0:02:37.8]}
15... f5 {[%clk 0:02:42.6]} 16. exf5 {[%clk 0:02:28.9]} 16... gxf5 {[%clk
0:02:42.1]} 17. f4 {[%clk 0:02:26]} 17... e4 {[%clk 0:02:42.2]} 18. Ne2 {[%clk
0:02:18.2]} 18... Nc5 {[%clk 0:02:38.8]} 19. Nd4 {[%clk 0:02:03]} 19... a4
{[%clk 0:02:23.2]} 20. Rad1 {[%clk 0:02:02.1]} 20... Qf6 {[%clk 0:02:19.3]} 21.
Kh1 {[%clk 0:01:57.6]} 21... h5 {[%clk 0:02:16.3]} 22. Rd2 {[%clk 0:01:44.8]}
22... Kh8 {[%clk 0:02:01.7]} 23. Bh3 {[%clk 0:01:30.4]} 23... Qg6 {[%clk
0:01:56.3]} 24. Rg1 {[%clk 0:01:23.7]} 24... Rae8 {[%clk 0:01:53.3]} 25. Qd1
{[%clk 0:01:07.5]} 25... Nd3 {[%clk 0:01:48.6]} 26. Bf1 {[%clk 0:01:04.8]} 26...
Kh7 {[%clk 0:01:19.6]} 27. Be2 {[%clk 0:00:58.1]} 27... Kh6 {[%clk 0:01:19.3]}
28. Bxd3 {[%clk 0:00:48.8]} 28... exd3 {[%clk 0:01:18.8]} 29. Rxd3 {[%clk
0:00:49.7]} 29... Re4 {[%clk 0:01:17.3]} 30. Bf2 {[%clk 0:00:43.1]} 30... Rfe8
{[%clk 0:01:15.2]} 31. Qf3 {[%clk 0:00:43]} 31... Qg4 {[%clk 0:00:54.6]} 32. Kg2
{[%clk 0:00:38.7]} 32... Bf6 {[%clk 0:00:45.8]} 33. h3 {[%clk 0:00:37.6]} 33...
Qg7 {[%clk 0:00:43.2]} 34. Kh2 {[%clk 0:00:36.4]} 34... Bxd4 {[%clk 0:00:41.2]}
35. Bxd4 {[%clk 0:00:21.7]} 35... Rxd4 {[%clk 0:00:40.4]} 36. Rxd4 {[%clk
0:00:18.3]} 36... Qxd4 {[%clk 0:00:40]} 37. Rg2 {[%clk 0:00:19.2]} 37... Qxc4
{[%clk 0:00:33.8]} 38. g4 {[%clk 0:00:15.6]} 38... hxg4 {[%clk 0:00:33.1]} 39.
Qg3 {[%clk 0:00:15.5]} 39... Kg7 {[%clk 0:00:21.3]} 40. hxg4 {[%clk 0:00:13.5]}
40... Rh8+ {[%clk 0:00:17.4]} 41. Kg1 {[%clk 0:00:13.9]} 41... Qc1+ {[%clk
0:00:15.3]} 42. Kf2 {[%clk 0:00:14.3]} 42... Qd2+ {[%clk 0:00:15.5]} 43. Kg1
{[%clk 0:00:11.8]} 43... Qd1+ {[%clk 0:00:14.5]} 44. Kf2 {[%clk 0:00:12.2]}
44... fxg4 {[%clk 0:00:14.4]} 45. Qc3+ {[%clk 0:00:12.3]} 45... Kg6 {[%clk
0:00:13.6]} 46. Qxh8 {[%clk 0:00:10.9]} 46... Qf3+ {[%clk 0:00:13.1]} 47. Kg1
{[%clk 0:00:11.2]} 47... Qd1+ {[%clk 0:00:13.3]} 48. Kh2 {[%clk 0:00:10.3]}
48... Qxd5 {[%clk 0:00:13.3]} 49. Qh4 {[%clk 0:00:09.7]} 49... Qf5 {[%clk
0:00:12.1]} 50. Qg3 {[%clk 0:00:09.2]} 50... Bc6 {[%clk 0:00:11.6]} 51. Qxg4+
{[%clk 0:00:06.9]} 51... Qxg4 {[%clk 0:00:12]} 52. Rxg4+ {[%clk 0:00:07.8]}
52... Kf5 {[%clk 0:00:12.7]} 53. Rh4 {[%clk 0:00:08]} 53... b5 {[%clk
0:00:11.9]} 54. Kg3 {[%clk 0:00:08.4]} 54... Bd5 {[%clk 0:00:12.2]} 55. Rh7
{[%clk 0:00:08.6]} 55... c5 {[%clk 0:00:12.3]} 56. Rd7 {[%clk 0:00:08.3]} 56...
Ke6 {[%clk 0:00:11.7]} 57. Rd8 {[%clk 0:00:08.5]} 57... b4 {[%clk 0:00:12.1]}
58. Kf2 {[%clk 0:00:08.2]} 58... bxa3 {[%clk 0:00:10.5]} 59. bxa3 {[%clk
0:00:09.1]} 59... Bb3 {[%clk 0:00:10.9]} 60. Ke3 {[%clk 0:00:09.2]} 60... d5
{[%clk 0:00:10.5]} 61. Rc8 {[%clk 0:00:09.5]} 61... Kd6 {[%clk 0:00:10.5]} 62.
Ra8 {[%clk 0:00:08.9]} 62... d4+ {[%clk 0:00:10.9]} 63. Ke4 {[%clk 0:00:09.3]}
63... Bc2+ {[%clk 0:00:11.3]} 64. Kf3 {[%clk 0:00:09.6]} 64... Kd5 {[%clk
0:00:11.6]} 65. Rf8 {[%clk 0:00:06.3]} 65... c4 {[%clk 0:00:11.7]} 66. f5 {[%clk
0:00:06.6]} 66... c3 {[%clk 0:00:11.1]} 67. f6 {[%clk 0:00:06.3]} 67... Ke6
{[%clk 0:00:11.1]} 68. Rd8 {[%clk 0:00:05.7]} 68... d3 {[%clk 0:00:09.5]} 69.
Ke3 {[%clk 0:00:04.3]} 69... Kxf6 {[%clk 0:00:09.7]} 70. Rxd3 {[%clk 0:00:04.2]}
70... Bxd3 {[%clk 0:00:07.3]} 71. Kxd3 {[%clk 0:00:05.1]} 71... Ke5 {[%clk
0:00:08.1]} 72. Kxc3 {[%clk 0:00:06]} 72... Kd5 {[%clk 0:00:08.8]} 73. Kb4
{[%clk 0:00:06.9]} 73... Kc6 {[%clk 0:00:09.7]} 74. Kxa4 {[%clk 0:00:07.8]}
74... Kb7 {[%clk 0:00:10.6]} 75. Kb4 {[%clk 0:00:08.4]} 75... Ka8 {[%clk
0:00:11.5]} 76. a4 {[%clk 0:00:09.3]} 76... Kb8 {[%clk 0:00:11.5]} 77. a5 {[%clk
0:00:10.2]} 77... Ka7 {[%clk 0:00:12.4]} 78. Kb5 {[%clk 0:00:11.1]} 78... Kb7
{[%clk 0:00:13.3]} 79. a6+ {[%clk 0:00:12]} 79... Ka8 {[%clk 0:00:14.2]} 80. Ka5
{[%clk 0:00:12.9]} 80... Ka7 {[%clk 0:00:14.7]} 81. Kb5 {[%clk 0:00:12.8]} 81...
Ka8 {[%clk 0:00:15.6]} 82. Kb6 {[%clk 0:00:13.7]} 82... Kb8 {[%clk 0:00:16.1]}
83. a7+ {[%clk 0:00:14.5]} 83... Ka8 {[%clk 0:00:17]} 84. Ka6 {[%clk 0:00:14.3]}
1/2-1/2

[Event "*** Titled Tuesday Blitz"]
[Site "Chess.com"]
[Date "2020.05.05"]
[Round "4"]
[White "WPWPWP-2015"]
[Black "RaphaeI"]
[Result "0-1"]
[WhiteElo "2442"]
[BlackElo "2645"]
[TimeControl "180+1"]
[EndTime "10:42:30 PDT"]
[Termination "RaphaeI won by checkmate"]

1. e4 {[%clk 0:03:00.9]} 1... c5 {[%clk 0:02:59.5]} 2. Nf3 {[%clk 0:02:56.9]}
2... Nc6 {[%clk 0:02:59.4]} 3. Bb5 {[%clk 0:02:53.3]} 3... g6 {[%clk 0:02:59.4]}
4. O-O {[%clk 0:02:52.1]} 4... Bg7 {[%clk 0:02:58.6]} 5. c3 {[%clk 0:02:51.7]}
5... Nf6 {[%clk 0:02:57.8]} 6. Qe2 {[%clk 0:02:51.9]} 6... O-O {[%clk
0:02:52.8]} 7. Rd1 {[%clk 0:02:51.5]} 7... Qb6 {[%clk 0:02:08.6]} 8. a4 {[%clk
0:02:43.4]} 8... a6 {[%clk 0:02:03]} 9. Bxc6 {[%clk 0:02:37]} 9... Qxc6 {[%clk
0:02:03.9]} 10. d3 {[%clk 0:02:34.7]} 10... b5 {[%clk 0:01:45.1]} 11. a5 {[%clk
0:02:28.5]} 11... Bb7 {[%clk 0:01:40.5]} 12. e5 {[%clk 0:02:18.9]} 12... Nd5
{[%clk 0:01:38]} 13. c4 {[%clk 0:02:06]} 13... Nc7 {[%clk 0:01:31]} 14. Nc3
{[%clk 0:02:02.3]} 14... d6 {[%clk 0:01:27.9]} 15. Bf4 {[%clk 0:01:57.9]} 15...
Ne6 {[%clk 0:01:19.8]} 16. Bg3 {[%clk 0:01:46.3]} 16... Nd4 {[%clk 0:01:19.9]}
17. Qe4 {[%clk 0:01:20.4]} 17... Qxe4 {[%clk 0:00:59.1]} 18. dxe4 {[%clk
0:01:05.6]} 18... dxe5 {[%clk 0:00:30.8]} 19. cxb5 {[%clk 0:00:38.2]} 19... axb5
{[%clk 0:00:30.6]} 20. Nxe5 {[%clk 0:00:36.4]} 20... b4 {[%clk 0:00:29.5]} 21.
Na4 {[%clk 0:00:17.7]} 21... Ne2+ {[%clk 0:00:29.2]} 22. Kf1 {[%clk 0:00:15.1]}
22... Nxg3+ {[%clk 0:00:30.1]} 23. hxg3 {[%clk 0:00:13.7]} 23... Bxe5 {[%clk
0:00:31]} 24. Nxc5 {[%clk 0:00:13.4]} 24... Ba6+ {[%clk 0:00:22.9]} 25. Kg1
{[%clk 0:00:13.2]} 25... Bxb2 {[%clk 0:00:22.4]} 26. Rab1 {[%clk 0:00:12.1]}
26... Bc3 {[%clk 0:00:22.5]} 27. Nd7 {[%clk 0:00:10.6]} 27... Rfd8 {[%clk
0:00:18]} 28. Nb6 {[%clk 0:00:10.5]} 28... Rab8 {[%clk 0:00:16.3]} 29. Nd5
{[%clk 0:00:08.7]} 29... Kf8 {[%clk 0:00:12.1]} 30. f4 {[%clk 0:00:03.5]} 30...
e6 {[%clk 0:00:09.3]} 31. Nb6 {[%clk 0:00:02.9]} 31... Rxd1+ {[%clk 0:00:06.8]}
32. Rxd1 {[%clk 0:00:03.8]} 32... Bb5 {[%clk 0:00:06.5]} 33. e5 {[%clk
0:00:02.2]} 33... Ke7 {[%clk 0:00:05.4]} 34. Rb1 {[%clk 0:00:01.7]} 34... Rd8
{[%clk 0:00:04.7]} 35. Kh2 {[%clk 0:00:01.5]} 35... Rd2 {[%clk 0:00:04.3]} 36.
a6 {[%clk 0:00:01.3]} 36... Bxa6 {[%clk 0:00:04.4]} 37. Na4 {[%clk 0:00:01.6]}
37... Bd3 {[%clk 0:00:03.3]} 38. Rc1 {[%clk 0:00:01]} 38... Be4 {[%clk
0:00:03.5]} 39. Nxc3 {[%clk 0:00:01.1]} 39... bxc3 {[%clk 0:00:04.4]} 40. Rxc3
{[%clk 0:00:01.4]} 40... Rxg2+ {[%clk 0:00:05.1]} 41. Kh3 {[%clk 0:00:02.1]}
41... Rd2 {[%clk 0:00:05.3]} 42. Rc7+ {[%clk 0:00:02.5]} 42... Rd7 {[%clk
0:00:05.5]} 43. Rc8 {[%clk 0:00:03.1]} 43... h5 {[%clk 0:00:05.7]} 44. Kh4
{[%clk 0:00:03.2]} 44... Bf5 {[%clk 0:00:03.7]} 45. Kg5 {[%clk 0:00:03.4]} 45...
Rd3 {[%clk 0:00:03.9]} 46. Rc7+ {[%clk 0:00:03.7]} 46... Kd8 {[%clk 0:00:04.3]}
47. Rxf7 {[%clk 0:00:03.4]} 47... Rxg3+ {[%clk 0:00:04.5]} 48. Kf6 {[%clk
0:00:03.9]} 48... h4 {[%clk 0:00:04.6]} 49. Ra7 {[%clk 0:00:03.5]} 49... h3
{[%clk 0:00:04.3]} 50. Rh7 {[%clk 0:00:03.4]} 50... Rg2 {[%clk 0:00:04.6]} 51.
Rh8+ {[%clk 0:00:02.5]} 51... Kc7 {[%clk 0:00:04.3]} 52. Rh7+ {[%clk 0:00:03.4]}
52... Kc6 {[%clk 0:00:04.3]} 53. Rh8 {[%clk 0:00:03.8]} 53... Kd5 {[%clk
0:00:04.5]} 54. Rc8 {[%clk 0:00:04.7]} 54... Ke4 {[%clk 0:00:04.6]} 55. Rc4+
{[%clk 0:00:04.5]} 55... Kf3 {[%clk 0:00:04.9]} 56. Rc3+ {[%clk 0:00:04.9]}
56... Kxf4 {[%clk 0:00:05.2]} 57. Rc4+ {[%clk 0:00:05]} 57... Kg3 {[%clk
0:00:04.9]} 58. Rc3+ {[%clk 0:00:04.9]} 58... Kh4 {[%clk 0:00:04.5]} 59. Rc4+
{[%clk 0:00:04.6]} 59... Rg4 {[%clk 0:00:04.1]} 60. Rc8 {[%clk 0:00:05.5]} 60...
h2 {[%clk 0:00:03.5]} 61. Rh8+ {[%clk 0:00:05.1]} 61... Kg3 {[%clk 0:00:03.8]}
62. Rb8 {[%clk 0:00:04.8]} 62... h1=Q {[%clk 0:00:03.3]} 63. Rb3+ {[%clk
0:00:05.7]} 63... Kh4 {[%clk 0:00:02.8]} 64. Rb8 {[%clk 0:00:05.5]} 64... Kg3
{[%clk 0:00:02.3]} 65. Rb3+ {[%clk 0:00:04.9]} 65... Kh2 {[%clk 0:00:02.6]} 66.
Rb2+ {[%clk 0:00:05]} 66... Rg2 {[%clk 0:00:03]} 67. Rb8 {[%clk 0:00:05.9]}
67... Qf1 {[%clk 0:00:03]} 68. Rh8+ {[%clk 0:00:05.9]} 68... Kg1 {[%clk
0:00:03.5]} 69. Rb8 {[%clk 0:00:06.8]} 69... Be4+ {[%clk 0:00:03.9]} 70. Ke7
{[%clk 0:00:06.7]} 70... Qc4 {[%clk 0:00:03.4]} 71. Rb1+ {[%clk 0:00:06.2]}
71... Bxb1 {[%clk 0:00:03.5]} 72. Kf6 {[%clk 0:00:06.3]} 72... Rf2+ {[%clk
0:00:03.6]} 73. Kg7 {[%clk 0:00:07.2]} 73... Qc7+ {[%clk 0:00:03.5]} 74. Kh6
{[%clk 0:00:08.1]} 74... Rh2+ {[%clk 0:00:03.7]} 75. Kg5 {[%clk 0:00:08.3]}
75... Qe7+ {[%clk 0:00:04]} 76. Kf4 {[%clk 0:00:08.4]} 76... Rh4+ {[%clk
0:00:04.7]} 77. Kg3 {[%clk 0:00:07.9]} 77... Qg5+ {[%clk 0:00:04.8]} 78. Kf3
{[%clk 0:00:08.8]} 78... Rf4+ {[%clk 0:00:04.9]} 79. Ke3 {[%clk 0:00:09.3]}
79... Qxe5+ {[%clk 0:00:05.6]} 80. Kd2 {[%clk 0:00:10.2]} 80... Rd4+ {[%clk
0:00:05.9]} 81. Kc1 {[%clk 0:00:11.1]} 81... Qc5+ {[%clk 0:00:06.4]} 82. Kb2
{[%clk 0:00:11.4]} 82... Rb4+ {[%clk 0:00:07]} 83. Ka1 {[%clk 0:00:12.1]} 83...
Qa5# {[%clk 0:00:07.8]} 0-1